fUSD/lending_fUSD_20260516
["ID","MTS","AMOUNT","RATE_DAILY","PERIOD"]
[422384540,1778919043000,-3464.21238912,0.00015,2]
[422384539,1778919043000,-500.0,0.00014599,2]
[422384548,1778919046000,-2983.4383552,0.00015,2]
[422384546,1778919046000,-6910.5226036,0.00015,2]
[422384545,1778919046000,-930.0,0.0001496,2]
[422384549,1778919046000,-548.29999999,0.00015,2]
[422384550,1778919046000,-417175.94734278,0.00015,2]
[422384608,1778919119000,-368.75092279,0.00022932,30]
[422384609,1778919119000,-5174.69,0.00023,30]
[422384607,1778919119000,-368.75092279,0.00022849,30]
[422384606,1778919119000,-368.75092279,0.00022767,30]
[422384604,1778919119000,-368.75092279,0.00022575,30]
[422384603,1778919119000,-310.19961027,0.0002,30]
[422384602,1778919119000,-171.33,0.00019452,30]
[422384595,1778919119000,-161.81,0.00018,30]
[422384601,1778919119000,-171.32,0.00019452,30]
[422384599,1778919119000,-161.81,0.00018,60]
[422384597,1778919119000,-161.81,0.00018,30]
[422384598,1778919119000,-161.81,0.00018,60]
[422384596,1778919119000,-161.81,0.00018,30]
[422384610,1778919119000,-152.0,0.00023,30]
[422384600,1778919119000,-198.35,0.00019452,30]
[422384612,1778919119000,-151.0,0.00023,30]
[422384605,1778919119000,-368.75092279,0.00022658,30]
[422384614,1778919119000,-151.0,0.00023,30]
[422384611,1778919119000,-151.0,0.00023,30]
[422384626,1778919119000,-368.75092279,0.00023205,30]
[422384627,1778919119000,-368.75092279,0.00023315,30]
[422384625,1778919119000,-368.75092279,0.00023123,30]
[422384624,1778919119000,-368.75092279,0.00023041,30]
[422384622,1778919119000,-200.0,0.00023,30]
[422384623,1778919119000,-363.0,0.00023,30]
[422384621,1778919119000,-158.0,0.00023,30]
[422384628,1778919119000,-368.75092279,0.00023397,30]
[422384629,1778919119000,-368.75092279,0.00023479,30]
[422384619,1778919119000,-158.0,0.00023,30]
[422384618,1778919119000,-158.0,0.00023,30]
[422384617,1778919119000,-158.0,0.00023,30]
[422384615,1778919119000,-159.0,0.00023,30]
[422384616,1778919119000,-158.0,0.00023,30]
[422384613,1778919119000,-151.0,0.00023,30]
[422384620,1778919119000,-158.0,0.00023,30]
[422384643,1778919120000,-254.53087623,0.00026588,60]
[422384642,1778919120000,-652.39527316,0.00026512,30]
[422384641,1778919120000,-254.53087623,0.00026439,60]
[422384639,1778919120000,-2865.3,0.00026291,80]
[422384640,1778919120000,-652.39527316,0.00026361,30]
[422384638,1778919120000,-156.11330999,0.00026289,60]
[422384637,1778919120000,-254.53087623,0.00026289,60]
[422384634,1778919120000,-156.11330999,0.00025991,30]
[422384635,1778919120000,-793.15,0.00026099,30]
[422384633,1778919120000,-254.53087623,0.00025991,30]
[422384632,1778919120000,-793.15,0.00025234,30]
[422384631,1778919120000,-536.75699377,0.00025,30]
[422384630,1778919120000,-368.75092279,0.00023589,30]
[422384644,1778919120000,-156.11330999,0.00026588,60]
[422384636,1778919120000,-254.53087623,0.0002614,30]
[422384646,1778919120000,-652.39527316,0.00026815,60]
[422384648,1778919120000,-652.39527316,0.00026966,60]
[422384662,1778919120000,-534.06,0.00028693,30]
[422384663,1778919120000,-423.05,0.00028693,30]
[422384645,1778919120000,-652.39527316,0.00026664,60]
[422384661,1778919120000,-2152.92,0.00028693,30]
[422384660,1778919120000,-1547.11,0.00028693,30]
[422384659,1778919120000,-537.57,0.00028693,30]
[422384657,1778919120000,-152.0,0.000286,33]
[422384656,1778919120000,-594.7,0.00028503,30]
[422384658,1778919120000,-2153.73,0.00028693,30]
[422384654,1778919120000,-152.0,0.00028227,32]
[422384653,1778919120000,-152.0,0.00027853,31]
[422384652,1778919120000,-793.15,0.0002783,30]
[422384651,1778919120000,-152.0,0.0002748,30]
[422384649,1778919120000,-177.83951611,0.000273,30]
[422384650,1778919120000,-1611.39361563,0.00027397,30]
[422384647,1778919120000,-793.15,0.00026964,30]
[422384655,1778919120000,-229.19040484,0.00028311,30]
[422384672,1778919121000,-537.57,0.00028883,30]
[422384677,1778919121000,-2153.73,0.00028979,30]
[422384675,1778919121000,-534.06,0.00028883,30]
[422384674,1778919121000,-2152.92,0.00028883,30]
[422384673,1778919121000,-1547.11,0.00028883,30]
[422384670,1778919121000,-423.05,0.00028788,30]
[422384676,1778919121000,-423.05,0.00028883,30]
[422384669,1778919121000,-534.06,0.00028788,30]
[422384668,1778919121000,-2152.92,0.00028788,30]
[422384667,1778919121000,-1547.11,0.00028788,30]
[422384666,1778919121000,-537.57,0.00028788,30]
[422384665,1778919121000,-2153.73,0.00028788,30]
[422384664,1778919121000,-793.15,0.00028695,30]
[422384671,1778919121000,-2153.73,0.00028883,30]
[422384679,1778919121000,-1547.11,0.00028979,30]
[422384678,1778919121000,-537.57,0.00028979,30]
[422384680,1778919121000,-2152.92,0.00028979,30]
[422384695,1778919121000,-534.06,0.00029169,30]
[422384694,1778919121000,-2152.92,0.00029169,30]
[422384693,1778919121000,-1547.11,0.00029169,30]
[422384692,1778919121000,-537.57,0.00029169,30]
[422384690,1778919121000,-1547.02,0.00029169,30]
[422384689,1778919121000,-423.05,0.00029074,30]
[422384688,1778919121000,-534.06,0.00029074,30]
[422384691,1778919121000,-2153.73,0.00029169,30]
[422384687,1778919121000,-2152.92,0.00029074,30]
[422384685,1778919121000,-537.57,0.00029074,30]
[422384684,1778919121000,-2153.73,0.00029074,30]
[422384683,1778919121000,-38905.00202882,0.00029,30]
[422384682,1778919121000,-423.05,0.00028979,30]
[422384681,1778919121000,-534.06,0.00028979,30]
[422384686,1778919121000,-1547.11,0.00029074,30]
[422384705,1778919122000,-726.86,0.0002987,30]
[422384711,1778919122000,-300.0,0.0003013,30]
[422384709,1778919122000,-1254.53,0.0003,30]
[422384707,1778919122000,-525.06781649,0.0003,30]
[422384708,1778919122000,-179.5427635,0.0003,30]
[422384706,1778919122000,-366.95497307,0.0003,30]
[422384703,1778919122000,-531.40008321,0.00029534,30]
[422384712,1778919122000,-415.75,0.00030136,30]
[422384702,1778919122000,-500.0,0.00029534,30]
[422384701,1778919122000,-500.0,0.00029534,30]
[422384700,1778919122000,-500.0,0.00029534,30]
[422384698,1778919122000,-500.0,0.00029534,30]
[422384699,1778919122000,-500.0,0.00029534,30]
[422384696,1778919122000,-423.05,0.00029169,30]
[422384710,1778919122000,-164.0,0.0003002,30]
[422384704,1778919122000,-793.15,0.0002956,30]
[422384697,1778919122000,-229.19040484,0.00029224,30]
[422384717,1778919122000,-306.77825586,0.00030137,120]
[422384714,1778919122000,-207.87,0.00030136,30]
[422384730,1778919122000,-5246.0,0.00030525,30]
[422384731,1778919122000,-5501.0,0.00030525,30]
[422384728,1778919122000,-210.0,0.00030525,30]
[422384729,1778919122000,-557.0,0.00030525,30]
[422384727,1778919122000,-850.0,0.00030525,30]
[422384713,1778919122000,-207.88,0.00030136,30]
[422384725,1778919122000,-174.0,0.00030222,120]
[422384723,1778919122000,-178.43199846,0.000302,120]
[422384726,1778919122000,-175.03,0.00030411,120]
[422384722,1778919122000,-5985.60361563,0.00030137,30]
[422384721,1778919122000,-6890.1,0.00030137,120]
[422384720,1778919122000,-1362.73588523,0.00030137,120]
[422384719,1778919122000,-150.0,0.00030137,120]
[422384718,1778919122000,-676.89610172,0.00030137,120]
[422384716,1778919122000,-26976.37,0.00030137,120]
[422384715,1778919122000,-1000.0,0.00030137,30]
[422384724,1778919122000,-1254.53,0.000302,30]
[422384740,1778919123000,-250.0,0.000308,30]
[422384747,1778919123000,-210.0,0.00031525,30]
[422384745,1778919123000,-1000.0,0.00031507,30]
[422384744,1778919123000,-1000.0,0.00031507,40]
[422384743,1778919123000,-5817.07040484,0.0003105,30]
[422384742,1778919123000,-358.0,0.00031,120]
[422384739,1778919123000,-340.0,0.00030529,30]
[422384748,1778919123000,-557.0,0.00031525,30]
[422384738,1778919123000,-1821.0,0.00030529,30]
[422384736,1778919123000,-953.0,0.00030525,30]
[422384737,1778919123000,-530.0,0.00030525,30]
[422384735,1778919123000,-1185.0,0.00030525,30]
[422384734,1778919123000,-2311.0,0.00030525,30]
[422384732,1778919123000,-888.0,0.00030525,30]
[422384733,1778919123000,-989.0,0.00030525,30]
[422384741,1778919123000,-749.91,0.00030893,30]
[422384749,1778919123000,-5246.0,0.00031525,30]
[422384746,1778919123000,-850.0,0.00031525,30]
[422384751,1778919123000,-888.0,0.00031525,30]
[422384768,1778919123000,-180.8822545,0.00032,120]
[422384765,1778919123000,-1256.55167276,0.00032,120]
[422384766,1778919123000,-223.86422804,0.00032,120]
[422384764,1778919123000,-199.9448596,0.00032,120]
[422384763,1778919123000,-186.687735,0.00032,120]
[422384761,1778919123000,-800.0,0.00032,120]
[422384762,1778919123000,-1296.58145655,0.00032,120]
[422384760,1778919123000,-177.47449092,0.00032,120]
[422384750,1778919123000,-5501.0,0.00031525,30]
[422384759,1778919123000,-7607.05040483,0.00031963,30]
[422384757,1778919123000,-1821.0,0.00031529,30]
[422384756,1778919123000,-530.0,0.00031525,30]
[422384755,1778919123000,-953.0,0.00031525,30]
[422384767,1778919123000,-182.90570145,0.00032,120]
[422384754,1778919123000,-1185.0,0.00031525,30]
[422384753,1778919123000,-2311.0,0.00031525,30]
[422384752,1778919123000,-989.0,0.00031525,30]
[422384758,1778919123000,-340.0,0.00031529,30]
[422384783,1778919124000,-2311.0,0.00032525,30]
[422384782,1778919124000,-989.0,0.00032525,30]
[422384780,1778919124000,-5501.0,0.00032525,30]
[422384779,1778919124000,-5246.0,0.00032525,30]
[422384778,1778919124000,-557.0,0.00032525,30]
[422384777,1778919124000,-210.0,0.00032525,30]
[422384774,1778919124000,-11000.0,0.0003222,120]
[422384775,1778919124000,-366.95497307,0.00032222,30]
[422384773,1778919124000,-162.08,0.00032,120]
[422384784,1778919124000,-1185.0,0.00032525,30]
[422384772,1778919124000,-404.29953709,0.00032,120]
[422384771,1778919124000,-665.14376245,0.00032,120]
[422384770,1778919124000,-1799.22046513,0.00032,120]
[422384769,1778919124000,-185.98338063,0.00032,120]
[422384776,1778919124000,-850.0,0.00032525,30]
[422384785,1778919124000,-953.0,0.00032525,30]
[422384781,1778919124000,-888.0,0.00032525,30]
[422384786,1778919124000,-530.0,0.00032525,30]
[422384788,1778919124000,-340.0,0.00032529,30]
[422384804,1778919124000,-150.0,0.00032877,30]
[422384803,1778919124000,-150.0,0.00032877,30]
[422384802,1778919124000,-150.0,0.00032877,30]
[422384800,1778919124000,-150.0,0.00032877,30]
[422384798,1778919124000,-150.0,0.00032877,30]
[422384799,1778919124000,-150.0,0.00032877,30]
[422384797,1778919124000,-150.0,0.00032877,30]
[422384801,1778919124000,-150.0,0.00032877,30]
[422384794,1778919124000,-150.0,0.00032877,30]
[422384796,1778919124000,-150.0,0.00032877,30]
[422384790,1778919124000,-2097.28,0.000327,30]
[422384789,1778919124000,-5445.70619419,0.00032604,30]
[422384792,1778919124000,-856.0,0.00032877,120]
[422384787,1778919124000,-1821.0,0.00032529,30]
[422384793,1778919124000,-150.0,0.00032877,30]
[422384795,1778919124000,-150.0,0.00032877,30]
[422384791,1778919124000,-404.27243303,0.0003287,120]
[422384815,1778919125000,-500.0,0.00032877,30]
[422384821,1778919125000,-152.69857013,0.000329,120]
[422384820,1778919125000,-12946.19767073,0.000329,120]
[422384819,1778919125000,-290.13,0.000329,120]
[422384818,1778919125000,-10218.89536719,0.00032877,30]
[422384817,1778919125000,-1033.97455416,0.00032877,60]
[422384816,1778919125000,-518.0,0.00032877,30]
[422384814,1778919125000,-500.0,0.00032877,30]
[422384822,1778919125000,-175.91106121,0.00033,60]
[422384813,1778919125000,-500.0,0.00032877,30]
[422384810,1778919125000,-150.0,0.00032877,30]
[422384811,1778919125000,-150.0,0.00032877,30]
[422384808,1778919125000,-150.0,0.00032877,30]
[422384809,1778919125000,-150.0,0.00032877,30]
[422384807,1778919125000,-150.0,0.00032877,30]
[422384806,1778919125000,-150.0,0.00032877,30]
[422384812,1778919125000,-271.0,0.00032877,30]
[422384805,1778919125000,-150.0,0.00032877,30]
[422384823,1778919125000,-477.59411947,0.00033,30]
[422384826,1778919125000,-199.9448596,0.00033,120]
[422384842,1778919125000,-41259.0,0.00033409,30]
[422384840,1778919125000,-41259.0,0.00033292,30]
[422384841,1778919125000,-41259.0,0.0003335,30]
[422384838,1778919125000,-41259.0,0.00033175,30]
[422384839,1778919125000,-41259.0,0.00033233,30]
[422384837,1778919125000,-41259.0,0.00033117,30]
[422384835,1778919125000,-41259.0,0.00033058,30]
[422384836,1778919125000,-1324.18022,0.000331,120]
[422384824,1778919125000,-1296.58145655,0.00033,120]
[422384833,1778919125000,-665.14376245,0.00033,120]
[422384832,1778919125000,-1799.22046513,0.00033,120]
[422384831,1778919125000,-185.98338063,0.00033,120]
[422384829,1778919125000,-182.90570145,0.00033,120]
[422384830,1778919125000,-180.8822545,0.00033,120]
[422384827,1778919125000,-1256.55167276,0.00033,120]
[422384828,1778919125000,-223.86422804,0.00033,120]
[422384825,1778919125000,-186.687735,0.00033,120]
[422384834,1778919125000,-404.29953709,0.00033,120]
[422384853,1778919126000,-850.0,0.00033525,30]
[422384856,1778919126000,-5246.0,0.00033525,30]
[422384859,1778919126000,-989.0,0.00033525,30]
[422384858,1778919126000,-888.0,0.00033525,30]
[422384857,1778919126000,-5501.0,0.00033525,30]
[422384854,1778919126000,-210.0,0.00033525,30]
[422384855,1778919126000,-557.0,0.00033525,30]
[422384851,1778919126000,-41259.0,0.00033467,30]
[422384848,1778919126000,-24106.0,0.00033409,30]
[422384850,1778919126000,-370.0,0.00033452,30]
[422384849,1778919126000,-255.0,0.00033452,30]
[422384847,1778919126000,-17220.0,0.00033409,30]
[422384846,1778919126000,-4305.0,0.00033409,30]
[422384844,1778919126000,-25555.0,0.00033409,30]
[422384845,1778919126000,-1088.0,0.00033409,30]
[422384860,1778919126000,-2311.0,0.00033525,30]
[422384852,1778919126000,-41259.0,0.00033525,30]
[422384843,1778919126000,-13599.0,0.00033409,30]
[422384861,1778919126000,-1185.0,0.00033525,30]
[422384862,1778919126000,-953.0,0.00033525,30]
[422384863,1778919126000,-530.0,0.00033525,30]
[422384879,1778919126000,-665.14376245,0.000339,120]
[422384877,1778919126000,-185.98338063,0.000339,120]
[422384878,1778919126000,-1799.22046513,0.000339,120]
[422384875,1778919126000,-182.90570145,0.000339,120]
[422384874,1778919126000,-1256.55167276,0.000339,120]
[422384873,1778919126000,-199.9448596,0.000339,120]
[422384871,1778919126000,-1296.58145655,0.000339,120]
[422384876,1778919126000,-180.8822545,0.000339,120]
[422384869,1778919126000,-41268.0,0.00033759,30]
[422384870,1778919126000,-151.7,0.000339,120]
[422384867,1778919126000,-41259.0,0.00033642,30]
[422384868,1778919126000,-41259.0,0.000337,30]
[422384866,1778919126000,-41259.0,0.00033584,30]
[422384864,1778919126000,-1821.0,0.00033529,30]
[422384865,1778919126000,-340.0,0.00033529,30]
[422384872,1778919126000,-186.687735,0.000339,120]
[422384890,1778919127000,-5501.0,0.00034525,30]
[422384895,1778919127000,-953.0,0.00034525,30]
[422384894,1778919127000,-1185.0,0.00034525,30]
[422384893,1778919127000,-2311.0,0.00034525,30]
[422384892,1778919127000,-989.0,0.00034525,30]
[422384891,1778919127000,-888.0,0.00034525,30]
[422384896,1778919127000,-530.0,0.00034525,30]
[422384880,1778919127000,-404.29953709,0.000339,120]
[422384887,1778919127000,-210.0,0.00034525,30]
[422384886,1778919127000,-850.0,0.00034525,30]
[422384885,1778919127000,-201.68,0.000345,120]
[422384884,1778919127000,-1497.03,0.000343,30]
[422384883,1778919127000,-1681.76,0.00034,30]
[422384882,1778919127000,-2890.72,0.00034,30]
[422384881,1778919127000,-800.0,0.00034,120]
[422384888,1778919127000,-557.0,0.00034525,30]
[422384897,1778919127000,-1821.0,0.00034529,30]
[422384889,1778919127000,-5246.0,0.00034525,30]
[422384900,1778919127000,-2811.53,0.00034544,60]
[422384898,1778919127000,-340.0,0.00034529,30]
[422384916,1778919127000,-500.0,0.00034932,60]
[422384913,1778919127000,-500.0,0.00034932,60]
[422384914,1778919127000,-733.2363794,0.00034932,60]
[422384912,1778919127000,-428.6420915,0.00034932,60]
[422384911,1778919127000,-516.3739076,0.00034932,60]
[422384909,1778919127000,-615.7734821,0.00034932,60]
[422384910,1778919127000,-184.9725785,0.00034932,60]
[422384915,1778919127000,-324.8000712,0.00034932,60]
[422384907,1778919127000,-195.0384288,0.00034932,60]
[422384906,1778919127000,-218.4864446,0.00034932,60]
[422384905,1778919127000,-356.2997268,0.00034932,60]
[422384903,1778919127000,-3405.5,0.00034544,60]
[422384904,1778919127000,-151.7,0.000349,120]
[422384901,1778919127000,-276.87,0.00034544,60]
[422384902,1778919127000,-1524.59,0.00034544,60]
[422384899,1778919127000,-412.4,0.00034544,60]
[422384908,1778919127000,-500.0,0.00034932,60]
[422384929,1778919128000,-479.27574005,0.00035,120]
[422384927,1778919128000,-232.73,0.00035,120]
[422384928,1778919128000,-1497.03,0.00035,60]
[422384925,1778919128000,-158.0,0.00035,120]
[422384926,1778919128000,-648.62483993,0.00035,60]
[422384924,1778919128000,-252.6705165,0.00035,30]
[422384919,1778919128000,-504.516,0.00035,120]
[422384923,1778919128000,-474.91,0.00035,120]
[422384921,1778919128000,-150.0,0.00035,60]
[422384920,1778919128000,-421.516,0.00035,120]
[422384918,1778919128000,-2308.70729794,0.00035,30]
[422384917,1778919128000,-961.7225395,0.00034932,60]
[422384930,1778919128000,-315.5967025,0.00035,30]
[422384922,1778919128000,-277.2918423,0.00035,120]
[422384931,1778919128000,-1296.58145655,0.00035,120]
[422384933,1778919128000,-199.9448596,0.00035,120]
[422384948,1778919128000,-19703.05,0.00035315,30]
[422384932,1778919128000,-186.687735,0.00035,120]
[422384947,1778919128000,-150.0,0.00035315,120]
[422384946,1778919128000,-15000.0,0.00035,90]
[422384945,1778919128000,-10000.0,0.00035,90]
[422384943,1778919128000,-534375.3896,0.00035,60]
[422384942,1778919128000,-197.29808256,0.00035,30]
[422384941,1778919128000,-400.0,0.00035,120]
[422384944,1778919128000,-15000.0,0.00035,90]
[422384940,1778919128000,-404.29953709,0.00035,120]
[422384937,1778919128000,-1799.22046513,0.00035,120]
[422384938,1778919128000,-271.26149576,0.00035,30]
[422384936,1778919128000,-185.98338063,0.00035,120]
[422384934,1778919128000,-1256.55167276,0.00035,120]
[422384935,1778919128000,-180.8822545,0.00035,120]
[422384939,1778919128000,-665.14376245,0.00035,120]
[422384957,1778919129000,-1185.0,0.00035525,30]
[422384963,1778919129000,-1156.0,0.00035616,120]
[422384962,1778919129000,-225.0,0.00035566,120]
[422384961,1778919129000,-340.0,0.00035529,30]
[422384959,1778919129000,-530.0,0.00035525,30]
[422384960,1778919129000,-1821.0,0.00035529,30]
[422384958,1778919129000,-953.0,0.00035525,30]
[422384964,1778919129000,-168.0,0.00035616,120]
[422384955,1778919129000,-989.0,0.00035525,30]
[422384954,1778919129000,-888.0,0.00035525,30]
[422384953,1778919129000,-5501.0,0.00035525,30]
[422384952,1778919129000,-5246.0,0.00035525,30]
[422384950,1778919129000,-210.0,0.00035525,30]
[422384949,1778919129000,-850.0,0.00035525,30]
[422384956,1778919129000,-2311.0,0.00035525,30]
[422384966,1778919129000,-219.8,0.000358,120]
[422384951,1778919129000,-557.0,0.00035525,30]
[422384968,1778919129000,-208.96,0.000358,120]
[422384965,1778919129000,-383.14805555,0.00035616,120]
[422384982,1778919129000,-400.9,0.00036062,120]
[422384979,1778919129000,-1799.22046513,0.00036,120]
[422384980,1778919129000,-665.14376245,0.00036,120]
[422384977,1778919129000,-199.9448596,0.00036,120]
[422384978,1778919129000,-1256.55167276,0.00036,120]
[422384975,1778919129000,-1296.58145655,0.00036,120]
[422384981,1778919129000,-404.29953709,0.00036,120]
[422384974,1778919129000,-800.0,0.00036,120]
[422384973,1778919129000,-2574.341753,0.00036,37]
[422384972,1778919129000,-326.6889,0.00036,60]
[422384971,1778919129000,-243.31599188,0.00036,60]
[422384970,1778919129000,-1000.0,0.00036,120]
[422384969,1778919129000,-1000.0,0.000359,90]
[422384967,1778919129000,-232.84,0.000358,120]
[422384976,1778919129000,-186.687735,0.00036,120]
[422384995,1778919130000,-557.0,0.00036525,30]
[422384994,1778919130000,-210.0,0.00036525,30]
[422384993,1778919130000,-850.0,0.00036525,30]
[422384992,1778919130000,-182.72518752,0.000365,30]
[422384991,1778919130000,-263336.0,0.000364,30]
[422384990,1778919130000,-180.08762253,0.000363,30]
[422384985,1778919130000,-160.0,0.000362,31]
[422384987,1778919130000,-160.0,0.000362,31]
[422384988,1778919130000,-160.0,0.000362,31]
[422384986,1778919130000,-160.0,0.000362,31]
[422384984,1778919130000,-330.0,0.0003618,40]
[422384983,1778919130000,-2565.9,0.00036153,30]
[422384996,1778919130000,-5246.0,0.00036525,30]
[422384989,1778919130000,-160.0,0.000362,31]
[422384997,1778919130000,-5501.0,0.00036525,30]
[422384998,1778919130000,-888.0,0.00036525,30]
[422384999,1778919130000,-989.0,0.00036525,30]
[422385012,1778919130000,-271.0,0.0003693,60]
[422385011,1778919130000,-3891.78,0.00036885,120]
[422385009,1778919130000,-680.84,0.000367,120]
[422385010,1778919130000,-194.17514051,0.00036866,120]
[422385008,1778919130000,-273.95,0.0003669,30]
[422385007,1778919130000,-150.0,0.00036618,120]
[422385013,1778919130000,-267.59260207,0.00036977,60]
[422385005,1778919130000,-340.0,0.00036529,30]
[422385004,1778919130000,-1821.0,0.00036529,30]
[422385003,1778919130000,-530.0,0.00036525,30]
[422385002,1778919130000,-953.0,0.00036525,30]
[422385001,1778919130000,-1185.0,0.00036525,30]
[422385000,1778919130000,-2311.0,0.00036525,30]
[422385006,1778919130000,-150.0,0.00036591,120]
[422385027,1778919131000,-151.0,0.00036999,30]
[422385026,1778919131000,-520.0,0.00036999,30]
[422385023,1778919131000,-200.0,0.00036999,30]
[422385025,1778919131000,-200.0,0.00036999,30]
[422385024,1778919131000,-518.5,0.00036999,30]
[422385022,1778919131000,-500.0,0.00036999,30]
[422385021,1778919131000,-151.0,0.00036999,30]
[422385018,1778919131000,-6888.0,0.00036999,30]
[422385019,1778919131000,-1030.0,0.00036999,30]
[422385017,1778919131000,-151.0,0.00036999,30]
[422385016,1778919131000,-200.0,0.00036999,30]
[422385015,1778919131000,-500.0,0.00036999,30]
[422385028,1778919131000,-7142.856,0.00036999,30]
[422385014,1778919131000,-200.0,0.00036999,30]
[422385020,1778919131000,-10000.0,0.00036999,30]
[422385029,1778919131000,-1068.11,0.00036999,30]
[422385047,1778919131000,-200.0,0.00036999,30]
[422385032,1778919131000,-500.0,0.00036999,30]
[422385030,1778919131000,-1538.43187735,0.00036999,30]
[422385046,1778919131000,-7681.20591386,0.00036999,30]
[422385044,1778919131000,-200.0,0.00036999,30]
[422385045,1778919131000,-151.0,0.00036999,30]
[422385043,1778919131000,-559.19188,0.00036999,30]
[422385042,1778919131000,-557.5788265,0.00036999,30]
[422385040,1778919131000,-162.380719,0.00036999,30]
[422385041,1778919131000,-500.0,0.00036999,30]
[422385037,1778919131000,-7407.141672,0.00036999,30]
[422385038,1778919131000,-1107.63007,0.00036999,30]
[422385036,1778919131000,-151.0,0.00036999,30]
[422385035,1778919131000,-539.24,0.00036999,30]
[422385034,1778919131000,-200.0,0.00036999,30]
[422385033,1778919131000,-537.6845,0.00036999,30]
[422385031,1778919131000,-156.587,0.00036999,30]
[422385039,1778919131000,-200.0,0.00036999,30]
[422385055,1778919132000,-200.0,0.00036999,30]
[422385060,1778919132000,-220.0,0.00036999,30]
[422385061,1778919132000,-200.0,0.00036999,30]
[422385059,1778919132000,-200.0,0.00036999,30]
[422385058,1778919132000,-220.0,0.00036999,30]
[422385057,1778919132000,-200.0,0.00036999,30]
[422385056,1778919132000,-200.0,0.00036999,30]
[422385049,1778919132000,-1148.61238259,0.00036999,30]
[422385053,1778919132000,-200.0,0.00036999,30]
[422385051,1778919132000,-579.88197956,0.00036999,30]
[422385052,1778919132000,-200.0,0.00036999,30]
[422385050,1778919132000,-500.0,0.00036999,30]
[422385063,1778919132000,-200.0,0.00036999,30]
[422385048,1778919132000,-168.3888056,0.00036999,30]
[422385054,1778919132000,-200.0,0.00036999,30]
[422385062,1778919132000,-220.0,0.00036999,30]
[422385080,1778919132000,-151.0,0.00036999,30]
[422385065,1778919132000,-500.0,0.00036999,30]
[422385081,1778919132000,-1734.97900068,0.00036999,30]
[422385079,1778919132000,-691.39774486,0.00036999,30]
[422385078,1778919132000,-151.0,0.00036999,30]
[422385077,1778919132000,-151.0,0.00036999,30]
[422385076,1778919132000,-666.72878,0.00036999,30]
[422385075,1778919132000,-151.0,0.00036999,30]
[422385074,1778919132000,-642.94,0.00036999,30]
[422385064,1778919132000,-220.0,0.00036999,30]
[422385073,1778919132000,-620.0,0.00036999,30]
[422385071,1778919132000,-334.63311112,0.00036999,30]
[422385070,1778919132000,-500.0,0.00036999,30]
[422385068,1778919132000,-500.0,0.00036999,30]
[422385069,1778919132000,-200.0,0.00036999,30]
[422385067,1778919132000,-358.02257958,0.00036999,30]
[422385066,1778919132000,-200.0,0.00036999,30]
[422385072,1778919132000,-500.0,0.00036999,30]
[422385094,1778919133000,-152.0,0.00036999,30]
[422385095,1778919133000,-160.0,0.00036999,30]
[422385092,1778919133000,-160.0,0.00036999,30]
[422385091,1778919133000,-354.71991006,0.00036999,30]
[422385090,1778919133000,-152.0,0.00036999,30]
[422385089,1778919133000,-160.0,0.00036999,30]